fUST/lending_fUST_20250626
["ID","MTS","AMOUNT","RATE_DAILY","PERIOD"]
[367828507,1750938642867,-151.0,0.00016712,2]
[367828508,1750938642877,-460.0,0.00016712,2]
[367828509,1750938642886,-151.0,0.00016712,2]
[367828510,1750938642896,-460.0,0.00016712,2]
[367828511,1750938642905,-460.0,0.00016712,2]
[367828512,1750938642915,-460.0,0.00016712,2]
[367828513,1750938642926,-460.0,0.00016712,2]
[367828514,1750938642936,-460.0,0.00016712,2]
[367828515,1750938642945,-460.0,0.00016712,2]
[367828516,1750938642956,-460.0,0.00016712,2]
[367828517,1750938642967,-460.0,0.00016712,2]
[367828518,1750938642976,-460.0,0.00016712,2]
[367828519,1750938642986,-514.82,0.00016712,2]
[367828520,1750938642995,-440.0,0.00016712,2]
[367828521,1750938643007,-552.56,0.00016712,2]
[367828522,1750938643016,-2249.96,0.00016712,2]
[367828523,1750938643026,-1484.65,0.00016712,2]
[367828524,1750938643037,-1390.73,0.00016712,2]
[367828525,1750938643046,-460.0,0.00016712,2]
[367828526,1750938643056,-460.0,0.00016712,2]
[367828527,1750938643066,-460.0,0.00016712,2]
[367828528,1750938643074,-596.44,0.00016712,2]
[367828529,1750938643084,-715.82,0.00016712,2]
[367828530,1750938643093,-460.0,0.00016712,2]
[367828531,1750938643102,-245.9012214,0.00016712,2]
[367828532,1750938643112,-474.91,0.00016712,2]
[367828533,1750938643121,-460.0,0.00016712,2]
[367828534,1750938643130,-780.26,0.00016712,2]
[367828535,1750938643139,-2309.22,0.00016712,2]
[367828536,1750938643149,-460.0,0.00016712,2]
[367828537,1750938643158,-460.0,0.00016712,2]
[367828538,1750938643168,-542.26144731,0.00016712,2]
[367828539,1750938643177,-835.13,0.00016712,2]
[367828540,1750938643187,-460.0,0.00016712,2]
[367828541,1750938643196,-2937.52,0.00016712,2]
[367828542,1750938643205,-460.0,0.00016712,2]
[367828543,1750938643215,-460.0,0.00016712,2]
[367828544,1750938643224,-460.0,0.00016712,2]
[367828545,1750938643234,-700.62,0.00016712,2]
[367828546,1750938643243,-460.0,0.00016712,2]
[367828547,1750938643252,-499.04,0.00016712,2]
[367828548,1750938643261,-460.0,0.00016712,2]
[367828549,1750938643270,-460.0,0.00016712,2]
[367828550,1750938643280,-216.56,0.00016712,2]
[367828551,1750938643289,-460.0,0.00016712,2]
[367828552,1750938643298,-1558.67,0.00016712,2]
[367828553,1750938643307,-1099.56,0.00016712,2]
[367828554,1750938643317,-460.0,0.00016712,2]
[367828555,1750938643326,-460.0,0.00016712,2]
[367828556,1750938643335,-460.0,0.00016712,2]
[367828557,1750938643344,-1080.61,0.00016712,2]
[367828558,1750938643354,-1383.15,0.00016712,2]
[367828559,1750938643363,-211.57912071,0.00016712,2]
[367828560,1750938643373,-460.0,0.00016712,2]
[367828561,1750938643382,-460.0,0.00016712,2]
[367828562,1750938643392,-460.0,0.00016712,2]
[367828563,1750938643401,-460.0,0.00016712,2]
[367828564,1750938643410,-460.0,0.00016712,2]
[367828565,1750938643420,-460.0,0.00016712,2]
[367828566,1750938643429,-460.0,0.00016712,2]
[367828567,1750938643438,-665.16,0.00016712,2]
[367828568,1750938643447,-460.0,0.00016712,2]
[367828569,1750938643457,-460.0,0.00016712,2]
[367828570,1750938643466,-1435.58,0.00016712,2]
[367828571,1750938643474,-460.0,0.00016712,2]
[367828572,1750938643484,-460.0,0.00016712,2]
[367828573,1750938643493,-587.13,0.00016712,2]
[367828574,1750938643502,-460.0,0.00016712,2]
[367828575,1750938643511,-460.0,0.00016712,2]
[367828576,1750938643520,-1773.28,0.00016712,2]
[367828577,1750938643529,-460.0,0.00016712,2]
[367828578,1750938643538,-487.17,0.00016712,2]
[367828579,1750938643547,-151.0,0.00016712,2]
[367828580,1750938643556,-151.0,0.00016712,2]
[367828581,1750938643565,-500.0,0.00016712,2]
[367828582,1750938643575,-1528.42,0.00016712,2]
[367828583,1750938643583,-460.0,0.00016712,2]
[367828584,1750938643592,-460.0,0.00016712,2]
[367828585,1750938643602,-559.76,0.00016712,2]
[367828586,1750938643611,-460.0,0.00016712,2]
[367828587,1750938643620,-460.0,0.00016712,2]
[367828588,1750938643630,-460.0,0.00016712,2]
[367828589,1750938643639,-1097.49,0.00016712,2]
[367828590,1750938643648,-460.0,0.00016712,2]
[367828591,1750938643657,-460.0,0.00016712,2]
[367828592,1750938643666,-460.0,0.00016712,2]
[367828593,1750938643675,-460.0,0.00016712,2]
[367828594,1750938643684,-460.0,0.00016712,2]
[367828595,1750938643694,-460.0,0.00016712,2]
[367828596,1750938643703,-460.0,0.00016712,2]
[367828597,1750938643712,-460.0,0.00016712,2]
[367828598,1750938643721,-460.0,0.00016712,2]
[367828599,1750938643730,-494.19,0.00016712,2]
[367828600,1750938643739,-723.58,0.00016712,2]
[367828601,1750938643749,-460.0,0.00016712,2]
[367828602,1750938643758,-395.48,0.00016712,2]
[367828603,1750938643768,-3359.93,0.00016712,2]
[367828604,1750938643777,-460.0,0.00016712,2]
[367828605,1750938643787,-460.0,0.00016712,2]
[367828606,1750938643797,-1825.85,0.00016712,2]
[367828607,1750938643806,-848.99,0.00016712,2]
[367828608,1750938643816,-460.0,0.00016712,2]
[367828609,1750938643826,-460.0,0.00016712,2]
[367828610,1750938643835,-460.0,0.00016712,2]
[367828611,1750938643845,-3697.64,0.00016712,2]
[367828612,1750938643855,-734.02,0.00016712,2]
[367828613,1750938643865,-2136.24,0.00016712,2]
[367828614,1750938643874,-460.0,0.00016712,2]
[367828615,1750938643883,-460.0,0.00016712,2]
[367828616,1750938643892,-982.0,0.00016739,2]
[367828617,1750938643902,-792.0,0.00016739,2]
[367828618,1750938643911,-155.87488093,0.00016739,2]
[367828619,1750938643920,-151.0,0.00016739,2]
[367828620,1750938643930,-151.0,0.00016739,2]
[367828621,1750938643939,-151.0,0.00016739,2]
[367828622,1750938643949,-213.51501345,0.00016739,2]
[367828623,1750938643962,-151.29765514,0.00016739,2]
[367828624,1750938643972,-200.51241642,0.00016739,2]
[367828625,1750938643981,-500.0,0.00016739,2]
[367828626,1750938643990,-982.0,0.00016767,2]
[367828627,1750938644001,-792.0,0.00016767,2]
[367828628,1750938644011,-166.07256633,0.00016767,2]
[367828629,1750938644020,-151.0,0.00016767,2]
[367828630,1750938644029,-500.0,0.00016767,2]
[367828631,1750938644039,-982.0,0.00016794,2]
[367828632,1750938644050,-792.0,0.00016794,2]
[367828633,1750938644059,-247.54744974,0.00016794,2]
[367828634,1750938644068,-500.0,0.00016794,2]
[367828635,1750938644078,-982.0,0.00016822,2]
[367828636,1750938644088,-792.0,0.00016822,2]
[367828637,1750938644097,-982.0,0.00016849,2]
[367828638,1750938644106,-792.0,0.00016849,2]
[367828639,1750938644115,-982.0,0.00016876,2]
[367828640,1750938644125,-792.0,0.00016876,2]
[367828641,1750938644134,-982.0,0.00016904,2]
[367828642,1750938644143,-792.0,0.00016904,2]
[367828643,1750938644152,-982.0,0.00016931,2]
[367828644,1750938644162,-792.0,0.00016931,2]
[367828645,1750938644171,-982.0,0.00016959,2]
[367828646,1750938644181,-792.0,0.00016959,2]
[367828647,1750938644191,-982.0,0.00016986,2]
[367828648,1750938644200,-792.0,0.00016986,2]
[367828649,1750938644210,-460.0,0.00016986,2]
[367828650,1750938644220,-391.28293949,0.00016986,2]
[367828651,1750938644229,-410.87111296,0.00016986,2]
[367828652,1750938644238,-460.0,0.00016986,2]
[367828653,1750938644247,-460.0,0.00016986,2]
[367828654,1750938644257,-460.0,0.00016986,2]
[367828655,1750938644267,-460.0,0.00016986,2]
[367828656,1750938644276,-460.0,0.00016986,2]
[367828657,1750938644286,-460.0,0.00016986,2]
[367828658,1750938644295,-460.0,0.00016986,2]
[367828659,1750938644305,-460.0,0.00016986,2]
[367828660,1750938644314,-434.08880575,0.00016986,2]
[367828661,1750938644323,-460.0,0.00016986,2]
[367828662,1750938644333,-460.0,0.00016986,2]
[367828663,1750938644344,-460.0,0.00016986,2]
[367828664,1750938644353,-460.0,0.00016986,2]
[367828665,1750938644363,-529.89,0.00016986,2]
[367828666,1750938644373,-460.0,0.00016986,2]
[367828667,1750938644383,-460.0,0.00016986,2]
[367828668,1750938644392,-460.0,0.00016986,2]
[367828669,1750938644402,-460.0,0.00016986,2]
[367828670,1750938644411,-680.23,0.00016986,2]
[367828671,1750938644421,-460.0,0.00016986,2]
[367828672,1750938644430,-460.0,0.00016986,2]
[367828673,1750938644439,-460.0,0.00016986,2]
[367828674,1750938644449,-460.0,0.00016986,2]
[367828675,1750938644459,-460.0,0.00016986,2]
[367828676,1750938644468,-460.0,0.00016986,2]
[367828677,1750938644478,-460.0,0.00016986,2]
[367828678,1750938644487,-563.75,0.00016986,2]
[367828679,1750938644496,-460.0,0.00016986,2]
[367828680,1750938644506,-460.0,0.00016986,2]
[367828681,1750938644515,-460.0,0.00016986,2]
[367828682,1750938644525,-460.0,0.00016986,2]
[367828683,1750938644534,-460.0,0.00016986,2]
[367828684,1750938644543,-460.0,0.00016986,2]
[367828685,1750938644554,-460.0,0.00016986,2]
[367828686,1750938644564,-460.0,0.00016986,2]
[367828687,1750938644573,-479.16,0.00016986,2]
[367828688,1750938644582,-460.0,0.00016986,2]
[367828689,1750938644594,-460.0,0.00016986,2]
[367828690,1750938644603,-460.0,0.00016986,2]
[367828691,1750938644613,-460.0,0.00016986,2]
[367828692,1750938644622,-460.0,0.00016986,2]
[367828693,1750938644632,-460.0,0.00016986,2]
[367828694,1750938644641,-460.0,0.00016986,2]
[367828695,1750938644651,-460.0,0.00016986,2]
[367828696,1750938644660,-460.0,0.00016986,2]
[367828697,1750938644670,-460.0,0.00016986,2]
[367828698,1750938644679,-460.0,0.00016986,2]
[367828699,1750938644687,-591.49,0.00016986,2]
[367828700,1750938644696,-460.0,0.00016986,2]
[367828701,1750938644705,-460.0,0.00016986,2]
[367828702,1750938644714,-460.0,0.00016986,2]
[367828703,1750938644723,-460.0,0.00016986,2]
[367828704,1750938644733,-460.0,0.00016986,2]
[367828705,1750938644742,-460.0,0.00016986,2]
[367828706,1750938644751,-460.0,0.00016986,2]
[367828707,1750938644761,-460.0,0.00016986,2]
[367828708,1750938644771,-980.18,0.00016986,2]
[367828709,1750938644780,-460.0,0.00016986,2]
[367828710,1750938644790,-460.0,0.00016986,2]
[367828711,1750938644799,-460.0,0.00016986,2]
[367828712,1750938644809,-460.0,0.00016986,2]
[367828713,1750938644819,-460.0,0.00016986,2]
[367828714,1750938644828,-460.0,0.00016986,2]
[367828715,1750938644838,-460.0,0.00016986,2]
[367828716,1750938644848,-460.0,0.00016986,2]
[367828717,1750938644858,-460.0,0.00016986,2]
[367828718,1750938644868,-460.0,0.00016986,2]
[367828719,1750938644876,-460.0,0.00016986,2]
[367828720,1750938644885,-460.0,0.00016986,2]
[367828721,1750938644894,-460.0,0.00016986,2]
[367828722,1750938644903,-460.0,0.00016986,2]
[367828723,1750938644911,-460.0,0.00016986,2]
[367828724,1750938644920,-460.0,0.00016986,2]
[367828725,1750938644928,-460.0,0.00016986,2]
[367828726,1750938644937,-460.0,0.00016986,2]
[367828727,1750938644946,-460.0,0.00016986,2]
[367828728,1750938644956,-554.56,0.00016986,2]
[367828729,1750938644967,-460.0,0.00016986,2]
[367828730,1750938644976,-460.0,0.00016986,2]
[367828731,1750938644986,-460.0,0.00016986,2]
[367828732,1750938644995,-310.87714299,0.00016986,2]
[367828733,1750938645006,-460.0,0.00016986,2]
[367828734,1750938645016,-460.0,0.00016986,2]
[367828735,1750938645026,-460.0,0.00016986,2]
[367828736,1750938645038,-460.0,0.00016986,2]
[367828737,1750938645048,-593.91,0.00016986,2]
[367828738,1750938645058,-460.0,0.00016986,2]
[367828739,1750938645067,-460.0,0.00016986,2]
[367828740,1750938645077,-460.0,0.00016986,2]
[367828741,1750938645085,-1405.31,0.00016986,2]
[367828742,1750938645094,-460.0,0.00016986,2]
[367828743,1750938645103,-460.0,0.00016986,2]
[367828744,1750938645112,-630.39,0.00016986,2]
[367828745,1750938645121,-469.13,0.00016986,2]
[367828746,1750938645131,-460.0,0.00016986,2]
[367828747,1750938645140,-583.07,0.00016986,2]
[367828748,1750938645150,-460.0,0.00016986,2]
[367828749,1750938645159,-889.83,0.00016986,2]
[367828750,1750938645168,-460.0,0.00016986,2]
[367828751,1750938645177,-460.0,0.00016986,2]
[367828752,1750938645187,-519.55,0.00016986,2]
[367828753,1750938645196,-460.0,0.00016986,2]
[367828754,1750938645205,-518.02358399,0.00016986,2]
[367828755,1750938645215,-312.84,0.00016986,2]
[367828756,1750938645224,-460.0,0.00016986,2]
[367828757,1750938645233,-460.0,0.00016986,2]
[367828758,1750938645243,-460.0,0.00016986,2]
[367828759,1750938645254,-460.0,0.00016986,2]
[367828760,1750938645263,-460.0,0.00016986,2]
[367828761,1750938645273,-460.0,0.00016986,2]
[367828762,1750938645282,-460.0,0.00016986,2]
[367828763,1750938645292,-514.82,0.00016986,2]
[367828764,1750938645301,-552.56,0.00016986,2]
[367828765,1750938645310,-2249.96,0.00016986,2]
[367828766,1750938645321,-1484.65,0.00016986,2]
[367828767,1750938645332,-1390.73,0.00016986,2]
[367828768,1750938645341,-460.0,0.00016986,2]
[367828769,1750938645350,-460.0,0.00016986,2]
[367828770,1750938645360,-460.0,0.00016986,2]
[367828771,1750938645369,-596.44,0.00016986,2]
[367828772,1750938645379,-715.82,0.00016986,2]
[367828773,1750938645390,-460.0,0.00016986,2]
[367828774,1750938645400,-474.91,0.00016986,2]
[367828775,1750938645409,-460.0,0.00016986,2]
[367828776,1750938645553,-780.26,0.00016986,2]
[367828777,1750938645584,-2309.22,0.00016986,2]
[367828778,1750938645593,-460.0,0.00016986,2]
[367828779,1750938645603,-460.0,0.00016986,2]
[367828780,1750938645612,-835.13,0.00016986,2]
[367828781,1750938645622,-460.0,0.00016986,2]
[367828782,1750938645631,-2937.52,0.00016986,2]
[367828783,1750938645640,-460.0,0.00016986,2]
[367828784,1750938645650,-460.0,0.00016986,2]
[367828785,1750938645659,-700.62,0.00016986,2]
[367828786,1750938645669,-460.0,0.00016986,2]
[367828787,1750938645680,-499.04,0.00016986,2]
[367828788,1750938645690,-460.0,0.00016986,2]
[367828789,1750938645699,-460.0,0.00016986,2]
[367828790,1750938645708,-460.0,0.00016986,2]
[367828791,1750938645718,-1558.67,0.00016986,2]
[367828792,1750938645727,-1099.56,0.00016986,2]
[367828793,1750938645736,-460.0,0.00016986,2]
[367828794,1750938645746,-476.32222731,0.00016986,2]
[367828795,1750938645755,-460.0,0.00016986,2]
[367828796,1750938645764,-1080.61,0.00016986,2]
[367828797,1750938645773,-1383.15,0.00016986,2]
[367828798,1750938645783,-460.0,0.00016986,2]
[367828799,1750938645793,-460.0,0.00016986,2]
[367828800,1750938645802,-293.66322788,0.00016986,2]
[367828801,1750938645812,-460.0,0.00016986,2]
[367828802,1750938645821,-460.0,0.00016986,2]
[367828803,1750938645831,-460.0,0.00016986,2]
[367828804,1750938645840,-460.0,0.00016986,2]
[367828805,1750938645850,-665.16,0.00016986,2]
[367828806,1750938645860,-460.0,0.00016986,2]
[367828807,1750938645870,-460.0,0.00016986,2]
[367828808,1750938645879,-1435.58,0.00016986,2]
[367828809,1750938645889,-460.0,0.00016986,2]
[367828810,1750938645899,-363.82,0.00016986,2]
[367828811,1750938645908,-587.13,0.00016986,2]
[367828812,1750938645918,-460.0,0.00016986,2]
[367828813,1750938645928,-1773.28,0.00016986,2]
[367828814,1750938645938,-268.49308088,0.00016986,2]
[367828815,1750938645947,-460.0,0.00016986,2]
[367828816,1750938645958,-487.17,0.00016986,2]
[367828817,1750938645969,-1528.42,0.00016986,2]
[367828818,1750938645979,-460.0,0.00016986,2]
[367828819,1750938645989,-350.65744344,0.00016986,2]
[367828820,1750938645999,-460.0,0.00016986,2]
[367828821,1750938646008,-460.0,0.00016986,2]
[367828822,1750938646017,-460.0,0.00016986,2]
[367828823,1750938646027,-1097.49,0.00016986,2]
[367828824,1750938646040,-460.0,0.00016986,2]
[367828825,1750938646050,-460.0,0.00016986,2]
[367828826,1750938646060,-460.0,0.00016986,2]
[367828827,1750938646071,-460.0,0.00016986,2]
[367828828,1750938646080,-460.0,0.00016986,2]
[367828829,1750938646090,-460.0,0.00016986,2]
[367828831,1750938646099,-460.0,0.00016986,2]
[367828832,1750938646109,-460.0,0.00016986,2]
[367828833,1750938646119,-357.54304828,0.00016986,2]
[367828834,1750938646128,-494.19,0.00016986,2]
[367828835,1750938646138,-723.58,0.00016986,2]
[367828836,1750938646147,-460.0,0.00016986,2]
[367828837,1750938646157,-3359.93,0.00016986,2]
[367828838,1750938646166,-460.0,0.00016986,2]
[367828839,1750938646175,-460.0,0.00016986,2]
[367828840,1750938646185,-1825.85,0.00016986,2]
[367828841,1750938646194,-848.99,0.00016986,2]
[367828842,1750938646204,-460.0,0.00016986,2]
[367828843,1750938646214,-460.0,0.00016986,2]
[367828844,1750938646223,-499.19612893,0.00016986,2]
[367828845,1750938646232,-734.02,0.00016986,2]
[367828846,1750938646241,-3697.64,0.00016986,2]
[367828847,1750938646251,-2136.24,0.00016986,2]
[367828848,1750938646260,-460.0,0.00016986,2]
[367828849,1750938646272,-460.0,0.00016986,2]
[367828850,1750938646282,-982.0,0.00017013,2]
[367828851,1750938646291,-792.0,0.00017013,2]
[367828852,1750938646302,-982.0,0.00017041,2]
[367828853,1750938646312,-792.0,0.00017041,2]
[367828854,1750938646324,-982.0,0.00017068,2]
[367828855,1750938646335,-792.0,0.00017068,2]
[367828856,1750938646345,-982.0,0.00017096,2]
[367828857,1750938646354,-792.0,0.00017096,2]
[367828859,1750938646363,-982.0,0.00017123,2]
[367828861,1750938646374,-792.0,0.00017123,2]
[367828863,1750938646383,-982.0,0.0001715,2]
[367828865,1750938646392,-792.0,0.0001715,2]
[367828867,1750938646402,-982.0,0.00017178,2]
[367828869,1750938646411,-792.0,0.00017178,2]
[367828870,1750938646420,-676.36308477,0.00017199,2]
[367828871,1750938646430,-982.0,0.00017205,2]
[367828872,1750938646441,-792.0,0.00017205,2]
[367828873,1750938646451,-982.0,0.00017233,2]
[367828874,1750938646461,-792.0,0.00017233,2]
[367828875,1750938646471,-982.0,0.0001726,2]
[367828876,1750938646481,-792.0,0.0001726,2]
[367828877,1750938646490,-460.0,0.0001726,2]
[367828878,1750938646499,-460.0,0.0001726,2]
[367828879,1750938646508,-460.0,0.0001726,2]
[367828880,1750938646517,-525.6333627,0.0001726,2]
[367828881,1750938646526,-460.0,0.0001726,2]
[367828882,1750938646535,-184.89,0.0001726,2]
[367828883,1750938646544,-460.0,0.0001726,2]
[367828884,1750938646554,-460.0,0.0001726,2]
[367828885,1750938646563,-460.0,0.0001726,2]
[367828886,1750938646572,-460.0,0.0001726,2]
[367828887,1750938646582,-460.0,0.0001726,2]
[367828888,1750938646591,-460.0,0.0001726,2]
[367828889,1750938646603,-460.0,0.0001726,2]
[367828890,1750938646612,-529.89,0.0001726,2]
[367828891,1750938646622,-460.0,0.0001726,2]
[367828892,1750938646632,-460.0,0.0001726,2]
[367828893,1750938646641,-488.51603678,0.0001726,2]
[367828894,1750938646651,-460.0,0.0001726,2]
[367828895,1750938646660,-680.23,0.0001726,2]
[367828896,1750938646669,-460.0,0.0001726,2]
[367828897,1750938646678,-460.0,0.0001726,2]
[367828898,1750938646688,-568.8364215,0.0001726,2]
[367828899,1750938646697,-239.42,0.0001726,2]
[367828900,1750938646706,-482.19547621,0.0001726,2]
[367828901,1750938646715,-460.0,0.0001726,2]
[367828902,1750938646724,-460.0,0.0001726,2]
[367828903,1750938646734,-563.75,0.0001726,2]
[367828904,1750938646743,-460.0,0.0001726,2]
[367828905,1750938646754,-460.0,0.0001726,2]
[367828906,1750938646764,-460.0,0.0001726,2]
[367828907,1750938646774,-460.0,0.0001726,2]
[367828908,1750938646783,-460.0,0.0001726,2]
[367828909,1750938646792,-460.0,0.0001726,2]
[367828910,1750938646802,-180.04336847,0.0001726,2]
[367828911,1750938646812,-460.0,0.0001726,2]
[367828912,1750938646821,-479.16,0.0001726,2]
[367828913,1750938646831,-460.0,0.0001726,2]
[367828914,1750938646841,-460.0,0.0001726,2]
[367828915,1750938646850,-460.0,0.0001726,2]
[367828916,1750938646861,-460.0,0.0001726,2]
[367828917,1750938646871,-460.0,0.0001726,2]
[367828918,1750938646880,-460.0,0.0001726,2]
[367828919,1750938646890,-460.0,0.0001726,2]
[367828920,1750938646899,-460.0,0.0001726,2]
[367828921,1750938646909,-460.0,0.0001726,2]
[367828922,1750938646918,-460.0,0.0001726,2]
[367828923,1750938646927,-591.49,0.0001726,2]
[367828924,1750938646937,-460.0,0.0001726,2]
[367828925,1750938646946,-460.0,0.0001726,2]
[367828926,1750938646955,-460.0,0.0001726,2]
[367828927,1750938646968,-460.0,0.0001726,2]
[367828928,1750938646977,-460.0,0.0001726,2]
[367828929,1750938646986,-460.0,0.0001726,2]
[367828930,1750938646996,-460.0,0.0001726,2]
[367828931,1750938647006,-460.0,0.0001726,2]
[367828932,1750938647015,-980.18,0.0001726,2]
[367828933,1750938647024,-460.0,0.0001726,2]
[367828934,1750938647033,-460.0,0.0001726,2]
[367828935,1750938647044,-460.0,0.0001726,2]
[367828936,1750938647053,-267.26648522,0.0001726,2]
[367828937,1750938647063,-460.0,0.0001726,2]
[367828938,1750938647072,-460.0,0.0001726,2]
[367828939,1750938647081,-460.0,0.0001726,2]
[367828940,1750938647091,-460.0,0.0001726,2]
[367828941,1750938647100,-234.95442889,0.0001726,2]
[367828942,1750938647109,-460.0,0.0001726,2]
[367828943,1750938647118,-460.0,0.0001726,2]
[367828944,1750938647128,-460.0,0.0001726,2]
[367828945,1750938647138,-460.0,0.0001726,2]
[367828946,1750938647147,-460.0,0.0001726,2]
[367828947,1750938647156,-460.0,0.0001726,2]
[367828948,1750938647165,-460.0,0.0001726,2]
[367828949,1750938647174,-460.0,0.0001726,2]
[367828950,1750938647183,-460.0,0.0001726,2]
[367828951,1750938647193,-554.56,0.0001726,2]
[367828952,1750938647203,-460.0,0.0001726,2]
[367828953,1750938647213,-460.0,0.0001726,2]
[367828954,1750938647222,-460.0,0.0001726,2]
[367828955,1750938647231,-460.0,0.0001726,2]
[367828956,1750938647241,-460.0,0.0001726,2]
[367828957,1750938647250,-460.0,0.0001726,2]
[367828958,1750938647259,-593.91,0.0001726,2]
[367828959,1750938647269,-460.0,0.0001726,2]
[367828960,1750938647278,-240.0,0.0001726,2]
[367828961,1750938647288,-460.0,0.0001726,2]
[367828962,1750938647297,-1405.31,0.0001726,2]
[367828963,1750938647306,-274.25047259,0.0001726,2]
[367828964,1750938647315,-590.91809254,0.0001726,2]
[367828965,1750938647324,-630.39,0.0001726,2]
[367828966,1750938647333,-469.13,0.0001726,2]
[367828967,1750938647342,-460.0,0.0001726,2]
[367828968,1750938647352,-583.07,0.0001726,2]
[367828969,1750938647362,-460.0,0.0001726,2]
[367828970,1750938647371,-889.83,0.0001726,2]
[367828971,1750938647381,-460.0,0.0001726,2]
[367828972,1750938647390,-519.55,0.0001726,2]
[367828973,1750938647400,-460.0,0.0001726,2]
[367828974,1750938647409,-460.0,0.0001726,2]
[367828975,1750938647419,-460.0,0.0001726,2]
[367828976,1750938647428,-460.0,0.0001726,2]
[367828977,1750938647438,-160.48617196,0.0001726,2]
[367828978,1750938647448,-460.0,0.0001726,2]
[367828979,1750938647457,-460.0,0.0001726,2]
[367828980,1750938647467,-514.82,0.0001726,2]
[367828981,1750938647476,-552.56,0.0001726,2]
[367828982,1750938647486,-2249.96,0.0001726,2]
[367828983,1750938647495,-1484.65,0.0001726,2]
[367828984,1750938647505,-1390.73,0.0001726,2]
[367828985,1750938647514,-460.0,0.0001726,2]
[367828986,1750938647523,-460.0,0.0001726,2]
[367828987,1750938647533,-460.0,0.0001726,2]
[367828988,1750938647543,-596.44,0.0001726,2]
[367828989,1750938647553,-715.82,0.0001726,2]
[367828990,1750938647562,-460.0,0.0001726,2]
[367828991,1750938647571,-474.91,0.0001726,2]
[367828992,1750938647581,-460.0,0.0001726,2]
[367828993,1750938647590,-780.26,0.0001726,2]
[367828994,1750938647599,-2309.22,0.0001726,2]
[367828995,1750938647608,-530.08402479,0.0001726,2]
[367828996,1750938647617,-338.0502782,0.0001726,2]
[367828997,1750938647627,-835.13,0.0001726,2]
[367828998,1750938647636,-539.29471919,0.0001726,2]
[367828999,1750938647645,-2937.52,0.0001726,2]
[367829000,1750938647655,-460.0,0.0001726,2]
[367829001,1750938647664,-460.0,0.0001726,2]
[367829002,1750938647673,-700.62,0.0001726,2]
[367829003,1750938647683,-460.0,0.0001726,2]
[367829004,1750938647692,-499.04,0.0001726,2]
[367829005,1750938647701,-460.0,0.0001726,2]
[367829006,1750938647710,-460.0,0.0001726,2]
[367829007,1750938647720,-460.0,0.0001726,2]
[367829008,1750938647730,-1558.67,0.0001726,2]
[367829009,1750938647739,-1099.56,0.0001726,2]
[367829010,1750938647749,-460.0,0.0001726,2]
[367829011,1750938647758,-460.0,0.0001726,2]
[367829012,1750938647767,-1080.61,0.0001726,2]
[367829013,1750938647777,-1383.15,0.0001726,2]